bitfinex-derivatives/quotes_SOLF0:USTF0_20251026
["timestamp","ask_amount","ask_price","bid_price","bid_amount"]
[1761485550583,3.76393236,198.69,198.64,2.83]
[1761485550880,8.46145156,198.68,198.64,2.83]
[1761485551077,8.04880833,198.67,198.63,2.98666]
[1761485551281,3.76393236,198.66,198.63,0.15666]
[1761485552269,3.76393236,198.65,198.63,0.15666]
[1761485552480,8.04880833,198.66,198.63,0.15666]
[1761485552678,3.76393236,198.65,198.63,0.15666]
[1761485553179,3.76393236,198.64,198.63,0.15666]
[1761485553375,8.04880833,198.64,198.63,0.15666]
[1761485553968,8.06165241,198.64,198.63,0.15666]
[1761485555973,8.06714458,198.64,198.63,0.15666]
[1761485556478,4.29772005,198.64,198.63,0.15666]
[1761485556682,3.76942453,198.64,198.63,0.15666]
[1761485556871,8.06714458,198.65,198.63,0.15666]
[1761485557281,3.76942453,198.64,198.63,2.98666]
[1761485557474,4.29772005,198.65,198.63,2.98666]
[1761485557673,3.76942453,198.65,198.63,2.98666]
[1761485557883,8.06081109,198.66,198.63,2.98666]
[1761485558183,3.76942453,198.65,198.63,2.98666]
[1761485558379,4.29101451,198.67,198.63,2.98666]
[1761485558578,4.69173387,198.68,198.63,2.98666]
[1761485558776,12.75217291,198.68,198.63,2.98666]
[1761485558978,8.06043904,198.67,198.63,2.98666]
[1761485559181,3.76942453,198.66,198.63,2.98666]
[1761485559380,8.06043904,198.67,198.63,2.98666]
[1761485559580,8.06043904,198.66,198.63,2.98666]
[1761485559781,3.76942453,198.65,198.63,2.98666]
[1761485559982,4.29050598,198.68,198.63,2.98666]
[1761485560282,12.75166438,198.69,198.63,2.98666]
[1761485560483,8.05993051,198.68,198.63,2.98666]
[1761485560682,3.76942453,198.67,198.63,2.98666]
[1761485560976,4.29050598,198.68,198.63,2.98666]
[1761485561183,12.75166438,198.69,198.63,2.98666]
[1761485561485,8.05993051,198.68,198.63,2.98666]
[1761485561684,3.76942453,198.67,198.63,2.98666]
[1761485561874,4.29050598,198.68,198.63,2.98666]
[1761485562078,12.75166438,198.69,198.63,2.98666]
[1761485562278,8.05993051,198.68,198.63,2.98666]
[1761485562476,3.76942453,198.67,198.63,2.98666]
[1761485562685,3.76942453,198.67,198.63,2.83]
[1761485563177,4.29050598,198.68,198.63,2.83]
[1761485563378,3.76942453,198.68,198.63,2.83]
[1761485563783,8.05786567,198.7,198.63,2.83]
[1761485564589,8.4611584,198.69,198.59,5.16]
[1761485564891,4.28844114,198.68,198.62,6.79]
[1761485565089,3.76942453,198.68,198.63,2.69]
[1761485565286,8.05735944,198.7,198.63,2.69]
[1761485565589,8.97966878,198.69,198.63,2.69]
[1761485565780,8.05735944,198.68,198.63,2.69]
[1761485565984,3.76942453,198.67,198.63,2.69]
[1761485566187,4.28832417,198.7,198.63,2.69]
[1761485566388,4.69173387,198.71,198.63,2.69]
[1761485566584,12.74948257,198.71,198.63,2.69]
[1761485566887,8.0577487,198.7,198.63,2.69]
[1761485567088,3.76942453,198.69,198.63,2.69]
[1761485567282,4.28832417,198.7,198.63,2.69]
[1761485567485,4.69173387,198.71,198.63,2.69]
[1761485567686,8.98005804,198.71,198.64,4.1]
[1761485567988,4.28832417,198.7,198.64,4.1]
[1761485568189,8.98005804,198.71,198.64,4.1]
[1761485568390,4.28832417,198.7,198.64,4.1]
[1761485568588,8.98005804,198.71,198.64,4.1]
[1761485568790,4.28832417,198.7,198.64,4.1]
[1761485568991,12.74948257,198.71,198.64,6.79]
[1761485569191,12.74948257,198.7,198.64,6.79]
[1761485569391,8.0577487,198.69,198.64,6.79]
[1761485569592,3.76942453,198.68,198.65,2.69]
[1761485570389,8.0577487,198.69,198.65,2.69]
[1761485570582,3.76942453,198.68,198.65,2.69]
[1761485570785,8.05485053,198.7,198.65,2.69]
[1761485570991,8.05485053,198.69,198.65,2.69]
[1761485571191,3.76942453,198.68,198.65,2.69]
[1761485571393,4.28539646,198.71,198.65,2.69]
[1761485571592,12.74655486,198.72,198.65,2.69]
[1761485571792,8.05482099,198.71,198.65,2.69]
[1761485571995,3.76942453,198.7,198.65,2.69]
[1761485572388,4.28539646,198.71,198.65,2.69]
[1761485572693,12.74655486,198.72,198.65,2.69]
[1761485572879,8.05482099,198.71,198.65,2.69]
[1761485573079,3.76942453,198.7,198.65,2.69]
[1761485573280,4.28539646,198.71,198.65,2.69]
[1761485573485,12.74655486,198.72,198.65,2.69]
[1761485573683,8.05482099,198.71,198.65,2.69]
[1761485573893,3.76942453,198.7,198.65,2.69]
[1761485574293,4.28539646,198.71,198.65,2.69]
[1761485574487,12.74655486,198.72,198.65,2.69]
[1761485574688,8.05482099,198.71,198.65,2.69]
[1761485574895,3.76942453,198.7,198.65,2.69]
[1761485575285,4.28539646,198.71,198.65,2.69]
[1761485575590,8.4611584,198.71,198.65,2.69]
[1761485575791,8.05482099,198.7,198.65,2.69]
[1761485575994,8.05482099,198.69,198.65,2.69]
[1761485576184,3.76942453,198.68,198.65,2.69]
[1761485576385,4.28840291,198.71,198.65,2.69]
[1761485576786,12.74956131,198.72,198.65,2.69]
[1761485576982,8.05782744,198.71,198.65,2.69]
[1761485577284,3.76942453,198.7,198.65,2.69]
[1761485577486,8.05782744,198.71,198.65,2.69]
[1761485577894,3.76942453,198.7,198.65,2.69]
[1761485578194,8.05782744,198.71,198.65,2.69]
[1761485578399,12.74956131,198.71,198.65,2.69]
[1761485578591,8.05782744,198.7,198.65,2.69]
[1761485578883,3.76942453,198.69,198.65,2.69]
[1761485579086,4.28840291,198.7,198.65,2.69]
[1761485579287,4.69173387,198.71,198.65,2.69]
[1761485579493,12.74956131,198.71,198.65,2.69]
[1761485579695,8.05782744,198.7,198.65,2.69]
[1761485579894,3.76942453,198.69,198.65,2.69]
[1761485580296,8.05782744,198.7,198.65,2.69]
[1761485580493,4.28840291,198.7,198.65,2.69]
[1761485580698,3.76942453,198.7,198.65,2.69]
[1761485580995,8.05782744,198.7,198.65,2.69]
[1761485581586,4.69173387,198.74,198.65,2.69]
[1761485581790,3.77903106,198.73,198.65,2.69]
[1761485581983,8.07024576,198.74,198.65,2.69]
[1761485582191,3.77903106,198.73,198.65,2.69]
[1761485582390,8.07024576,198.74,198.65,2.69]
[1761485583896,3.77903106,198.73,198.65,2.69]
[1761485584197,8.07128453,198.75,198.65,2.69]
[1761485584795,8.07128453,198.74,198.65,2.69]
[1761485584999,3.77903106,198.73,198.65,2.69]
[1761485585196,4.29249984,198.76,198.65,2.69]
[1761485585394,4.69173387,198.77,198.65,2.69]
[1761485585603,12.76326477,198.77,198.65,2.69]
[1761485585802,8.0715309,198.76,198.65,2.69]
[1761485586002,3.77903106,198.75,198.65,2.69]
[1761485586201,4.29249984,198.76,198.65,2.69]
[1761485586398,3.77903106,198.76,198.65,2.69]
[1761485586904,8.0715309,198.76,198.65,2.69]
[1761485587203,4.29249984,198.76,198.65,2.69]
[1761485587404,3.77903106,198.76,198.65,2.69]
[1761485587703,4.29186167,198.79,198.65,2.69]
[1761485587904,4.69173387,198.8,198.65,2.69]
[1761485588101,12.7626266,198.8,198.65,2.69]
[1761485588309,8.07089273,198.79,198.65,2.69]
[1761485588494,8.07089273,198.78,198.65,2.69]
[1761485588695,8.07089273,198.77,198.65,2.69]
[1761485588902,4.69173387,198.8,198.65,2.69]
[1761485588903,3.77903106,198.76,198.65,2.69]
[1761485589110,4.69173387,198.77,198.65,2.69]
[1761485589409,3.77903106,198.76,198.65,2.69]
[1761485589603,8.47076493,198.77,198.65,2.69]
[1761485589906,3.77903106,198.76,198.65,2.69]
[1761485590107,8.06936911,198.78,198.65,2.69]
[1761485590308,3.77903106,198.77,198.65,2.69]
[1761485590506,8.06936911,198.78,198.65,2.69]
[1761485590806,3.77903106,198.77,198.65,2.69]
[1761485591104,3.77903106,198.77,198.66,2.65]
[1761485591304,8.06936911,198.78,198.66,2.65]
[1761485592008,8.06936911,198.78,198.68,2.65]
[1761485592209,3.77903106,198.77,198.68,2.65]
[1761485592400,8.0659904,198.79,198.68,2.65]
[1761485593299,4.28695934,198.79,198.68,2.65]
[1761485593494,3.77903106,198.8,198.68,2.65]
[1761485593801,8.0659904,198.8,198.68,2.65]
[1761485594005,8.0659904,198.8,198.68,4.5296]
[1761485594206,8.0659904,198.8,198.69,2.65]
[1761485594408,2.3459904,198.8,198.69,2.65]
[1761485594597,4.68211288,198.84,198.76,2.65]
[1761485594803,2.77,198.87,198.76,2.65]
[1761485595909,2.77,198.87,198.65,1.87]
[1761485596208,2.77,198.85,198.7,1.87]
[1761485597408,2.77,198.83,198.7,1.87]
[1761485597905,9.03335894,198.82,198.66,1.87]
[1761485598112,2.77,198.81,198.66,1.87]
[1761485599508,2.77,198.81,198.67,2.48]
[1761485599810,2.77,198.81,198.68,1.87]
[1761485602101,22.48335894,198.88,198.7,1.87]
[1761485602102,2.77,198.87,198.7,1.87]
[1761485606108,2.77,198.87,198.73,1.87]
[1761485611512,2.77,198.87,198.69,1.87]
[1761485611706,2.77,198.85,198.69,1.87]
[1761485613116,4.47731175,198.84,198.69,1.87]
[1761485613318,2.77,198.82,198.69,1.87]
[1761485613618,2.77,198.8,198.69,1.87]
[1761485614115,2.77,198.79,198.7,5.97]
[1761485614315,2.77,198.79,198.71,1.87]
[1761485616512,2.77,198.79,198.72,3.07]
[1761485617421,7.2505012,198.79,198.72,3.07]
[1761485617720,4.4805012,198.78,198.72,3.07]
[1761485618114,2.77,198.79,198.72,3.07]
[1761485619706,2.77,198.79,198.73,1.88]
[1761485620107,2.59,198.78,198.72,1.2]
[1761485620310,2.59,198.77,198.72,1.2]
[1761485620511,2.59,198.76,198.72,1.2]
[1761485620709,2.59,198.75,198.72,1.2]
[1761485620907,2.59,198.74,198.72,1.2]
[1761485621117,2.59,198.73,198.72,1.2]
[1761485621317,6.95975109,198.73,198.72,1.2]
[1761485621514,2.59,198.73,198.72,1.2]
[1761485622319,2.59,198.73,198.7,4.1]
[1761485623121,2.59,198.72,198.7,4.1]
[1761485624209,2.59,198.72,198.7,0.46028577]
[1761485624413,2.59,198.7,198.67,2.48]
[1761485625025,2.59,198.69,198.67,2.48]
[1761485625318,2.59,198.68,198.67,2.48]
[1761485625517,6.96203141,198.68,198.67,2.48]
[1761485626425,2.59,198.68,198.67,2.48]
[1761485627111,6.96203141,198.68,198.67,2.48]
[1761485627317,9.41834613,198.74,198.6,0.16429]
[1761485627318,2.59,198.67,198.6,0.16429]
[1761485627919,2.59,198.66,198.6,0.16429]
[1761485628522,2.59,198.66,198.54,2.84]
[1761485631220,2.59,198.65,198.54,0.22]
[1761485631728,2.59,198.64,198.54,0.22]
[1761485631913,2.59,198.63,198.59,0.15138]
[1761485633024,2.59,198.62,198.59,0.15138]
[1761485634219,4.37203141,198.67,198.59,0.15138]
[1761485634419,2.59,198.61,198.59,0.15138]
[1761485639028,2.59,198.63,198.59,0.15138]
[1761485640119,2.59,198.63,198.6,2.62]
[1761485640316,2.59,198.67,198.6,2.62]
[1761485640720,2.59,198.67,198.59,0.15138]
[1761485640930,2.59,198.66,198.59,0.15138]
[1761485641124,2.59,198.65,198.59,0.15138]
[1761485641323,2.59,198.64,198.59,0.15138]
[1761485641524,2.59,198.63,198.59,0.15138]
[1761485641731,2.59,198.62,198.59,0.15138]
[1761485641927,2.7,198.61,198.59,0.15138]
[1761485642821,2.7,198.6,198.59,0.15138]
[1761485643021,6.33635641,198.6,198.59,0.15138]
[1761485645119,2.7,198.6,198.59,0.15138]
[1761485645322,6.33635641,198.6,198.59,0.15138]
[1761485645525,2.7,198.59,198.54,0.22]
[1761485646628,2.7,198.57,198.54,0.22]
[1761485647228,2.7,198.56,198.54,0.22]
[1761485647829,2.7,198.55,198.54,0.22]
[1761485651731,2.7,198.55,198.46,2.83]
[1761485652536,2.76,198.59,198.46,2.83]
[1761485654139,2.76,198.59,198.38,2.83]
[1761485654833,2.76,198.59,198.48,2.83]
[1761485656723,3.63169829,198.61,198.49,2.83]
[1761485656927,2.76,198.63,198.49,2.83]
[1761485657127,10.7516253,198.63,198.49,2.83]
[1761485657333,3.63778593,198.62,198.49,2.83]
[1761485657938,7.11383937,198.63,198.5,4.5338]
[1761485658136,3.63963217,198.62,198.51,2.83]
[1761485658638,3.63963217,198.62,198.53,2.83]
[1761485659037,7.11383937,198.63,198.53,2.83]
[1761485659232,3.64101524,198.62,198.53,2.83]
[1761485663945,7.99485461,198.63,198.53,2.83]
[1761485664145,10.75485461,198.63,198.53,2.83]
[1761485664336,3.64101524,198.62,198.53,2.83]
[1761485667545,3.64101524,198.62,198.54,2.83]
[1761485668541,6.40101524,198.63,198.54,2.83]
[1761485670348,3.64101524,198.62,198.54,2.83]
[1761485670551,7.99485461,198.62,198.54,2.83]
[1761485670751,4.35383937,198.61,198.54,2.83]
[1761485671257,3.64101524,198.62,198.54,2.83]
[1761485671457,6.40101524,198.63,198.54,2.83]
[1761485671763,3.64101524,198.63,198.5,2.83]
[1761485672059,7.99485461,198.63,198.5,2.83]
[1761485672255,7.41147462,198.67,198.5,2.83]
[1761485672461,10.68766242,198.66,198.5,2.83]
[1761485672660,7.92766242,198.65,198.5,2.83]
[1761485673161,7.92766242,198.65,198.56,2.83]
[1761485673861,7.92766242,198.65,198.56,7.3623]
[1761485674063,7.92766242,198.65,198.57,2.83]
[1761485674259,3.68792502,198.65,198.57,2.83]
[1761485674456,7.9256235,198.68,198.57,2.83]
[1761485674656,7.9256235,198.68,198.59,2.83]
[1761485675163,3.68792502,198.67,198.59,2.83]
[1761485675566,10.6856235,198.69,198.59,2.83]
[1761485675770,7.9256235,198.68,198.59,2.83]
[1761485677461,10.6856235,198.68,198.59,2.83]
[1761485677664,3.68792502,198.67,198.59,2.83]
[1761485678364,2.76,198.68,198.59,2.83]
[1761485679065,10.68146971,198.68,198.59,2.83]
[1761485679264,3.68792502,198.67,198.59,2.83]
[1761485679467,2.76,198.68,198.59,2.83]
[1761485680160,10.68077115,198.68,198.59,2.83]
[1761485680359,3.68792502,198.67,198.59,2.83]
[1761485680860,61.56,198.72,198.6,2.61]
[1761485681067,2.64,198.7,198.6,2.61]
[1761485681261,6.32131351,198.7,198.6,2.61]
[1761485681466,2.64,198.7,198.61,2.61]
[1761485688375,4.65147462,198.76,198.61,2.61]
[1761485688575,2.64,198.75,198.61,2.61]
[1761485688768,2.64,198.75,198.61,7.1411]
[1761485688969,2.64,198.75,198.63,2.61]
[1761485690270,2.64,198.74,198.63,2.61]
[1761485695574,2.64,198.73,198.63,2.61]
[1761485695774,2.64,198.72,198.63,2.61]
[1761485697071,2.64,198.71,198.63,2.61]
[1761485697276,2.64,198.7,198.63,2.61]
[1761485699475,2.64,198.69,198.63,2.61]
[1761485701275,6.312457,198.69,198.63,2.61]
[1761485701481,2.64,198.68,198.63,2.61]
[1761485702370,2.61,198.67,198.63,2.61]
[1761485702770,2.61,198.66,198.63,2.61]
[1761485702971,2.61,198.66,198.57,4.5322]
[1761485703178,2.61,198.66,198.58,2.67]
[1761485704783,2.61,198.66,198.59,2.67]
[1761485704983,6.282457,198.66,198.59,2.67]
[1761485705174,3.672457,198.65,198.59,2.67]
[1761485705576,6.84305821,198.69,198.59,2.67]
[1761485705882,6.42223867,198.68,198.59,2.67]
[1761485709684,6.64223867,198.67,198.59,2.67]
[1761485709878,3.81223867,198.66,198.59,2.67]
[1761485710276,2.83,198.67,198.59,2.67]
[1761485710474,2.83,198.66,198.59,2.67]
[1761485711190,6.64223867,198.66,198.59,2.67]
[1761485711380,3.81223867,198.65,198.59,2.67]
[1761485711785,2.83,198.66,198.59,2.67]
[1761485711990,6.64223867,198.66,198.59,2.67]
[1761485712284,3.81223867,198.65,198.59,2.67]
[1761485712484,2.83,198.66,198.59,2.67]
[1761485712683,6.64223867,198.66,198.59,2.67]
[1761485712886,3.81223867,198.65,198.59,2.67]
[1761485713084,2.83,198.66,198.59,2.67]
[1761485713284,3.81223867,198.65,198.59,2.67]
[1761485713685,2.83,198.63,198.52,2.86]
[1761485713992,2.83,198.62,198.52,2.86]
[1761485714190,6.64223867,198.62,198.52,2.86]
[1761485714393,3.81223867,198.61,198.54,2.86]
[1761485714784,2.83,198.62,198.54,2.86]
[1761485715184,6.64223867,198.62,198.54,2.86]
[1761485715388,3.81223867,198.61,198.54,2.86]
[1761485718004,6.64223867,198.61,198.54,2.86]
[1761485718192,3.81223867,198.6,198.54,2.86]
[1761485718593,2.83,198.61,198.54,2.86]
[1761485719200,6.64223867,198.61,198.54,2.86]
[1761485719502,3.81223867,198.6,198.54,2.86]
[1761485719697,2.83,198.61,198.54,2.86]
[1761485722397,6.6502109,198.61,198.54,2.86]
[1761485722701,2.83,198.59,198.54,2.86]
[1761485722898,3.8202109,198.62,198.54,2.86]
[1761485723101,2.83,198.6,198.54,2.86]
[1761485723405,2.83,198.59,198.54,2.86]
[1761485723596,3.8202109,198.59,198.54,2.86]
[1761485723805,2.83,198.58,198.54,2.86]
[1761485724812,2.83,198.57,198.54,2.86]
[1761485725495,2.83,198.57,198.5,146.80959145]
[1761485725695,8.47168552,198.61,198.5,146.80959145]
[1761485725996,2.83,198.59,198.5,208.18959145]
[1761485726208,2.83,198.57,198.5,208.18959145]
[1761485726706,2.83,198.56,198.5,208.18959145]
[1761485730819,2.83,198.55,198.51,2.86]
[1761485731220,3.8202109,198.58,198.51,2.86]
[1761485731524,2.83,198.59,198.51,2.86]
[1761485731707,3.8202109,198.6,198.51,2.86]
[1761485731910,3.8202109,198.61,198.53,2.86]
[1761485732113,2.83,198.61,198.55,2.86]
[1761485735320,6.6502109,198.61,198.55,2.86]
[1761485735520,6.6502109,198.6,198.55,2.86]
[1761485735721,2.83,198.6,198.55,2.86]
[1761485736024,2.83,198.6,198.54,61.38]
[1761485736717,2.83,198.59,198.53,61.38]
[1761485737321,2.83,198.59,198.53,64.24]
[1761485740518,6.64601188,198.59,198.53,64.24]
[1761485740717,2.66,198.57,198.51,2.73]
[1761485740919,2.66,198.56,198.52,64.11]
[1761485741119,2.66,198.55,198.52,64.11]
[1761485742020,2.66,198.55,198.45,62.0]
[1761485742219,2.66,198.54,198.46,2.73]
[1761485742426,2.66,198.53,198.47,61.38]
[1761485742624,2.66,198.53,198.48,2.73]
[1761485743214,3.81601188,198.53,198.48,2.73]
[1761485743417,6.47601188,198.57,198.48,2.73]
[1761485743622,6.47601188,198.56,198.48,2.73]
[1761485743821,6.47601188,198.55,198.48,2.73]
[1761485744023,3.81601188,198.54,198.48,2.73]
[1761485744418,2.66,198.55,198.48,2.73]
[1761485747829,2.66,198.55,198.45,2.73]
[1761485750131,2.66,198.55,198.46,2.73]
[1761485754031,2.66,198.55,198.48,2.73]
[1761485754723,6.47601188,198.55,198.49,2.73]
[1761485755033,2.66,198.53,198.49,2.73]
[1761485755530,2.66,198.57,198.5,2.73]
[1761485755726,6.48338641,198.57,198.5,2.73]
[1761485755926,3.82338641,198.56,198.5,2.73]
[1761485756128,2.66,198.57,198.5,2.73]
[1761485756324,6.48338641,198.57,198.5,2.73]
[1761485756524,3.82338641,198.56,198.5,2.73]
[1761485756725,2.66,198.56,198.5,2.73]
[1761485757326,6.48338641,198.56,198.5,2.73]
[1761485757528,6.48338641,198.55,198.5,2.73]
[1761485757727,3.82338641,198.54,198.5,2.73]
[1761485757930,2.66,198.55,198.5,2.73]
[1761485758329,6.48338641,198.55,198.5,2.73]
[1761485758529,2.66,198.55,198.5,2.73]
[1761485759524,6.4860698,198.55,198.5,2.73]
[1761485759724,2.66,198.55,198.5,2.73]
[1761485760931,6.48663843,198.55,198.5,2.73]
[1761485761136,2.66,198.55,198.5,2.73]
[1761485762232,2.66,198.54,198.5,2.73]
[1761485763134,2.8,198.53,198.5,2.73]
[1761485764231,3.82706915,198.53,198.5,2.73]
[1761485764438,2.8,198.54,198.5,2.73]
[1761485764637,6.62706915,198.54,198.5,2.73]
[1761485764939,3.82949201,198.53,198.5,2.73]
[1761485765140,2.8,198.53,198.5,2.73]
[1761485765933,6.62949201,198.53,198.5,2.73]
[1761485766240,2.8,198.53,198.5,2.73]
[1761485767239,6.63138565,198.53,198.5,2.73]
[1761485767542,2.8,198.53,198.5,2.73]
[1761485767740,2.8,198.53,198.47,7.2544]
[1761485768040,2.8,198.53,198.48,2.72]
[1761485768441,6.632194,198.53,198.48,2.72]
[1761485768635,7.37147462,198.57,198.5,2.68]
[1761485768835,2.72,198.55,198.5,2.68]
[1761485769036,6.55251726,198.54,198.5,2.68]
[1761485769237,3.83251726,198.53,198.5,2.68]
[1761485769742,6.55251726,198.53,198.5,2.68]
[1761485769941,3.83251726,198.52,198.5,2.68]
[1761485770338,2.72,198.53,198.5,2.68]
[1761485770936,6.55251726,198.53,198.5,2.68]
[1761485771136,3.83251726,198.52,198.5,2.68]
[1761485771538,2.72,198.53,198.5,2.68]
[1761485772238,6.55251726,198.53,198.5,2.68]
[1761485772438,3.83251726,198.52,198.5,2.68]
[1761485772638,2.72,198.53,198.5,2.68]
[1761485772839,3.83251726,198.55,198.5,2.68]
[1761485773046,3.83251726,198.54,198.5,2.68]
[1761485773346,2.72,198.54,198.5,2.68]
[1761485773644,6.55251726,198.54,198.5,2.68]
[1761485773842,3.83251726,198.53,198.5,2.68]
[1761485774244,2.72,198.54,198.5,2.68]
[1761485774839,6.55251726,198.54,198.5,2.68]
[1761485775039,3.83251726,198.53,198.5,2.68]
[1761485775441,2.72,198.54,198.5,2.68]
[1761485776141,6.55251726,198.54,198.5,2.68]
[1761485776338,6.55251726,198.53,198.5,2.68]
[1761485776536,2.72,198.53,198.5,2.68]
[1761485777538,6.55319755,198.53,198.5,2.68]
[1761485777846,3.8338948,198.52,198.5,2.68]
[1761485778048,2.72,198.53,198.5,2.68]
[1761485778758,6.5538948,198.53,198.5,2.68]
[1761485779052,3.8338948,198.52,198.5,2.68]
[1761485782056,6.5538948,198.52,198.5,2.68]
[1761485782363,2.72,198.5,198.44,2.68]
[1761485782649,6.5565612,198.5,198.44,2.68]
[1761485782854,2.72,198.5,198.44,2.68]
[1761485783364,3.83723263,198.49,198.44,2.68]
[1761485783544,2.72,198.49,198.44,2.68]
[1761485784149,6.55723263,198.49,198.44,2.68]
[1761485784344,2.72,198.48,198.44,2.68]
[1761485785661,6.55849877,198.48,198.44,2.68]
[1761485785959,2.72,198.48,198.44,2.68]
[1761485789744,3.84873009,198.5,198.45,2.68]
[1761485789949,3.84873009,198.49,198.45,2.68]
[1761485790151,2.72,198.5,198.45,2.68]
[1761485790354,3.84846558,198.49,198.45,2.68]
[1761485790550,2.72,198.5,198.46,2.68]
[1761485790749,3.84821979,198.49,198.46,2.68]
[1761485790953,4.65147462,198.55,198.49,4.5341]
[1761485791158,6.56779112,198.54,198.5,2.68]
[1761485791352,6.56779112,198.53,198.5,2.68]
[1761485791659,3.84779112,198.52,198.5,2.68]
[1761485791859,3.84779112,198.51,198.5,2.68]
[1761485792053,3.84779112,198.52,198.5,2.68]
[1761485792260,3.84779112,198.51,198.5,2.68]
[1761485792558,3.84779112,198.52,198.5,2.68]
[1761485792759,3.84779112,198.56,198.5,2.68]
[1761485793057,3.84779112,198.55,198.5,2.68]
[1761485793246,3.84779112,198.54,198.5,2.68]
[1761485793453,3.84779112,198.56,198.5,2.68]
[1761485793650,3.84779112,198.55,198.5,2.68]
[1761485793860,3.84779112,198.54,198.5,2.68]
[1761485794060,3.84779112,198.57,198.51,2.68]
[1761485794254,6.56779112,198.56,198.51,2.68]
[1761485794560,3.84779112,198.55,198.51,2.68]
[1761485794771,3.84779112,198.54,198.51,2.68]
[1761485795059,3.84779112,198.55,198.51,2.68]
[1761485795260,3.84779112,198.54,198.51,2.68]
[1761485795462,3.84779112,198.55,198.51,2.68]
[1761485795664,3.84779112,198.54,198.51,2.68]
[1761485795864,3.84779112,198.55,198.51,2.68]
[1761485796058,3.84779112,198.54,198.51,2.68]
[1761485796258,3.84779112,198.55,198.51,2.68]
[1761485796457,3.84779112,198.54,198.51,2.68]
[1761485796765,2.72,198.54,198.51,2.68]
[1761485796963,6.56779112,198.54,198.51,2.68]
[1761485797165,2.72,198.54,198.51,2.68]
[1761485798767,6.43550631,198.56,198.51,2.68]
[1761485798966,3.84550631,198.55,198.51,2.68]
[1761485801458,2.59,198.57,198.51,2.68]
[1761485801664,2.59,198.55,198.51,2.68]
[1761485802165,2.59,198.54,198.51,2.68]
[1761485803564,6.43413286,198.54,198.51,2.68]
[1761485803870,2.59,198.54,198.51,2.68]
[1761485804466,6.43432983,198.54,198.51,2.68]
[1761485804768,2.59,198.54,198.51,2.68]
[1761485805471,6.43432557,198.54,198.51,2.68]
[1761485805769,2.59,198.54,198.51,2.68]
[1761485806467,2.59,198.53,198.51,2.68]
[1761485807063,2.59,198.53,198.48,4.5341]
[1761485807266,2.59,198.53,198.49,2.68]
[1761485807469,6.43438571,198.53,198.49,2.68]
[1761485807768,2.59,198.53,198.49,2.68]
[1761485807966,2.59,198.53,198.5,2.68]
[1761485814173,6.43413715,198.54,198.5,2.68]
[1761485814371,2.59,198.54,198.5,2.68]
[1761485814963,6.43408695,198.54,198.5,2.68]
[1761485815161,2.59,198.54,198.5,2.68]
[1761485815873,2.59,198.53,198.49,4.5339]
[1761485816169,2.59,198.52,198.49,7.2139]
[1761485816373,2.59,198.52,198.49,2.68]
[1761485816975,2.59,198.52,198.48,2.68]
[1761485817276,2.59,198.5,198.47,4.5344]